fUST/lending_fUST_20260610
["ID","MTS","AMOUNT","RATE_DAILY","PERIOD"]
[424691993,1781055040000,-500.0,0.00019178,2]
[424692049,1781055040000,-500.0,0.00019178,2]
[424692051,1781055040000,-500.0,0.00019178,2]
[424692053,1781055040000,-500.0,0.00019178,2]
[424692055,1781055040000,-235.62,0.00019178,2]
[424692063,1781055040000,-500.0,0.00019452,2]
[424692066,1781055040000,-500.0,0.00019452,2]
[424692068,1781055040000,-500.0,0.00019452,2]
[424692070,1781055040000,-500.0,0.00019452,2]
[424692057,1781055040000,-600.0,0.00019362,2]
[424692059,1781055040000,-3304.4982487,0.00019429,2]
[424692061,1781055040000,-174.6742,0.00019431,2]
[424692064,1781055040000,-500.0,0.00019452,2]
[424692071,1781055040000,-500.0,0.00019452,2]
[424692075,1781055040000,-500.0,0.00019452,2]
[424692073,1781055040000,-500.0,0.00019452,2]
[424692076,1781055040000,-500.0,0.00019452,2]
[424692078,1781055040000,-500.0,0.00019452,2]
[424692080,1781055040000,-630.9,0.00019452,2]
[424692085,1781055040000,-513.1,0.00019452,2]
[424692089,1781055040000,-230.22973867,0.00019452,2]
[424692083,1781055040000,-500.0,0.00019452,2]
[424692090,1781055040000,-291.45,0.00019452,2]
[424692087,1781055040000,-500.0,0.00019452,2]
[424692092,1781055040000,-500.0,0.00019452,2]
[424692094,1781055040000,-500.0,0.00019452,2]
[424692100,1781055040000,-500.0,0.00019452,2]
[424692098,1781055040000,-500.0,0.00019452,2]
[424692096,1781055040000,-500.0,0.00019452,2]
[424691990,1781055040000,-500.0,0.00019178,2]
[424692048,1781055040000,-511.44158014,0.00019178,2]
[424692046,1781055040000,-504.52,0.00019178,2]
[424692082,1781055040000,-500.0,0.00019452,2]
[424692033,1781055040000,-529.84946372,0.00019178,2]
[424692035,1781055040000,-3034.63,0.00019178,2]
[424691981,1781055040000,-2123.62,0.00019178,2]
[424691986,1781055040000,-500.0,0.00019178,2]
[424691984,1781055040000,-500.0,0.00019178,2]
[424691988,1781055040000,-518.66139825,0.00019178,2]
[424691997,1781055040000,-1414.48,0.00019178,2]
[424691999,1781055040000,-500.0,0.00019178,2]
[424692002,1781055040000,-511.87849229,0.00019178,2]
[424692001,1781055040000,-2742.84,0.00019178,2]
[424692006,1781055040000,-500.0,0.00019178,2]
[424692008,1781055040000,-500.0,0.00019178,2]
[424692017,1781055040000,-514.16848,0.00019178,2]
[424692011,1781055040000,-500.0,0.00019178,2]
[424692004,1781055040000,-500.0,0.00019178,2]
[424692015,1781055040000,-500.0,0.00019178,2]
[424691982,1781055040000,-526.63649013,0.00019178,2]
[424692009,1781055040000,-3393.91,0.00019178,2]
[424692013,1781055040000,-275.57116663,0.00019178,2]
[424692040,1781055040000,-533.09283158,0.00019178,2]
[424692044,1781055040000,-500.0,0.00019178,2]
[424692036,1781055040000,-500.63808777,0.00019178,2]
[424692029,1781055040000,-969.0,0.00019178,2]
[424692038,1781055040000,-500.0,0.00019178,2]
[424692042,1781055040000,-500.0,0.00019178,2]
[424692024,1781055040000,-1138.19,0.00019178,2]
[424692027,1781055040000,-507.66,0.00019178,2]
[424692018,1781055040000,-3924.22,0.00019178,2]
[424692020,1781055040000,-2371.29,0.00019178,2]
[424692031,1781055040000,-465.3638223,0.00019178,2]
[424692025,1781055040000,-500.0,0.00019178,2]
[424692022,1781055040000,-500.0,0.00019178,2]
[424692186,1781055041000,-500.0,0.00019452,2]
[424692157,1781055041000,-500.0,0.00019452,2]
[424692159,1781055041000,-649.82,0.00019452,2]
[424692154,1781055041000,-508.81796462,0.00019452,2]
[424692174,1781055041000,-500.0,0.00019452,2]
[424692175,1781055041000,-500.0,0.00019452,2]
[424692176,1781055041000,-500.0,0.00019452,2]
[424692178,1781055041000,-583.68,0.00019452,2]
[424692180,1781055041000,-500.0,0.00019452,2]
[424692182,1781055041000,-500.0,0.00019452,2]
[424692184,1781055041000,-500.0,0.00019452,2]
[424692189,1781055041000,-500.0,0.00019452,2]
[424692172,1781055041000,-500.0,0.00019452,2]
[424692212,1781055041000,-506.56,0.00019452,2]
[424692193,1781055041000,-500.0,0.00019452,2]
[424692195,1781055041000,-500.0,0.00019452,2]
[424692196,1781055041000,-500.0,0.00019452,2]
[424692198,1781055041000,-500.0,0.00019452,2]
[424692170,1781055041000,-534.92,0.00019452,2]
[424692217,1781055041000,-500.0,0.00019452,2]
[424692214,1781055041000,-500.0,0.00019452,2]
[424692215,1781055041000,-500.0,0.00019452,2]
[424692200,1781055041000,-194.77999813,0.00019452,2]
[424692205,1781055041000,-500.0,0.00019452,2]
[424692203,1781055041000,-305.22000187,0.00019452,2]
[424692210,1781055041000,-500.0,0.00019452,2]
[424692208,1781055041000,-500.0,0.00019452,2]
[424692206,1781055041000,-500.0,0.00019452,2]
[424692191,1781055041000,-500.0,0.00019452,2]
[424692152,1781055041000,-500.0,0.00019452,2]
[424692148,1781055041000,-500.0,0.00019452,2]
[424692168,1781055041000,-500.0,0.00019452,2]
[424692102,1781055041000,-500.0,0.00019452,2]
[424692104,1781055041000,-500.0,0.00019452,2]
[424692105,1781055041000,-500.0,0.00019452,2]
[424692115,1781055041000,-500.0,0.00019452,2]
[424692109,1781055041000,-500.0,0.00019452,2]
[424692117,1781055041000,-500.0,0.00019452,2]
[424692119,1781055041000,-500.0,0.00019452,2]
[424692111,1781055041000,-500.0,0.00019452,2]
[424692107,1781055041000,-500.0,0.00019452,2]
[424692113,1781055041000,-500.0,0.00019452,2]
[424692120,1781055041000,-2758.5592,0.00019452,2]
[424692122,1781055041000,-892.75,0.00019452,2]
[424692126,1781055041000,-500.0,0.00019452,2]
[424692124,1781055041000,-500.0,0.00019452,2]
[424692155,1781055041000,-500.0,0.00019452,2]
[424692130,1781055041000,-500.0,0.00019452,2]
[424692137,1781055041000,-500.0,0.00019452,2]
[424692219,1781055041000,-500.0,0.00019452,2]
[424692141,1781055041000,-500.0,0.00019452,2]
[424692134,1781055041000,-500.0,0.00019452,2]
[424692139,1781055041000,-500.0,0.00019452,2]
[424692135,1781055041000,-500.0,0.00019452,2]
[424692143,1781055041000,-500.0,0.00019452,2]
[424692145,1781055041000,-500.0,0.00019452,2]
[424692147,1781055041000,-500.0,0.00019452,2]
[424692150,1781055041000,-500.0,0.00019452,2]
[424692162,1781055041000,-500.0,0.00019452,2]
[424692161,1781055041000,-434.03416063,0.00019452,2]
[424692164,1781055041000,-500.0,0.00019452,2]
[424692166,1781055041000,-500.0,0.00019452,2]
[424692132,1781055041000,-500.0,0.00019452,2]
[424692128,1781055041000,-168.68,0.00019452,2]
[424692187,1781055041000,-500.0,0.00019452,2]
[424692226,1781055041000,-500.0,0.00019452,2]
[424692284,1781055041000,-1204.49,0.00019452,2]
[424692288,1781055041000,-500.0,0.00019452,2]
[424692287,1781055041000,-500.0,0.00019452,2]
[424692290,1781055041000,-500.0,0.00019452,2]
[424692291,1781055041000,-500.0,0.00019452,2]
[424692289,1781055041000,-582.84,0.00019452,2]
[424692292,1781055041000,-500.0,0.00019452,2]
[424692295,1781055041000,-1485.73,0.00019452,2]
[424692293,1781055041000,-1115.58,0.00019452,2]
[424692296,1781055041000,-1089.68,0.00019452,2]
[424692297,1781055041000,-511.54,0.00019452,2]
[424692294,1781055041000,-253.84269104,0.00019452,2]
[424692298,1781055041000,-1673.39,0.00019452,2]
[424692300,1781055041000,-500.0,0.00019452,2]
[424692299,1781055041000,-2123.62,0.00019452,2]
[424692301,1781055041000,-500.0,0.00019452,2]
[424692302,1781055041000,-500.0,0.00019452,2]
[424692303,1781055041000,-500.0,0.00019452,2]
[424692309,1781055041000,-500.0,0.00019452,2]
[424692307,1781055041000,-2742.84,0.00019452,2]
[424692304,1781055041000,-500.0,0.00019452,2]
[424692306,1781055041000,-647.96,0.00019452,2]
[424692310,1781055041000,-3393.91,0.00019452,2]
[424692305,1781055041000,-1414.48,0.00019452,2]
[424692308,1781055041000,-500.0,0.00019452,2]
[424692312,1781055041000,-500.0,0.00019452,2]
[424692311,1781055041000,-500.0,0.00019452,2]
[424692313,1781055041000,-3924.22,0.00019452,2]
[424692223,1781055041000,-500.0,0.00019452,2]
[424692286,1781055041000,-2078.16,0.00019452,2]
[424692285,1781055041000,-500.0,0.00019452,2]
[424692221,1781055041000,-500.0,0.00019452,2]
[424692279,1781055041000,-500.0,0.00019452,2]
[424692280,1781055041000,-500.0,0.00019452,2]
[424692230,1781055041000,-500.0,0.00019452,2]
[424692234,1781055041000,-500.0,0.00019452,2]
[424692228,1781055041000,-500.0,0.00019452,2]
[424692232,1781055041000,-500.0,0.00019452,2]
[424692235,1781055041000,-620.43,0.00019452,2]
[424692237,1781055041000,-500.0,0.00019452,2]
[424692241,1781055041000,-500.0,0.00019452,2]
[424692239,1781055041000,-500.0,0.00019452,2]
[424692243,1781055041000,-2805.86,0.00019452,2]
[424692245,1781055041000,-457.26225592,0.00019452,2]
[424692247,1781055041000,-2191.43,0.00019452,2]
[424692257,1781055041000,-500.0,0.00019452,2]
[424692259,1781055041000,-500.0,0.00019452,2]
[424692263,1781055041000,-500.0,0.00019452,2]
[424692224,1781055041000,-500.0,0.00019452,2]
[424692251,1781055041000,-500.0,0.00019452,2]
[424692261,1781055041000,-500.0,0.00019452,2]
[424692283,1781055041000,-12201.47,0.00019452,2]
[424692282,1781055041000,-500.0,0.00019452,2]
[424692281,1781055041000,-623.14,0.00019452,2]
[424692278,1781055041000,-699.28,0.00019452,2]
[424692272,1781055041000,-500.0,0.00019452,2]
[424692277,1781055041000,-500.0,0.00019452,2]
[424692268,1781055041000,-500.0,0.00019452,2]
[424692266,1781055041000,-500.0,0.00019452,2]
[424692255,1781055041000,-500.0,0.00019452,2]
[424692249,1781055041000,-782.41,0.00019452,2]
[424692253,1781055041000,-500.0,0.00019452,2]
[424692265,1781055041000,-1448.14,0.00019452,2]
[424692270,1781055041000,-2947.65,0.00019452,2]
[424692364,1781055042000,-2805.86,0.00019726,2]
[424692362,1781055042000,-500.0,0.00019726,2]
[424692360,1781055042000,-620.43,0.00019726,2]
[424692365,1781055042000,-2191.43,0.00019726,2]
[424692358,1781055042000,-607.9,0.00019726,2]
[424692372,1781055042000,-500.0,0.00019726,2]
[424692367,1781055042000,-500.0,0.00019726,2]
[424692369,1781055042000,-500.0,0.00019726,2]
[424692368,1781055042000,-500.0,0.00019726,2]
[424692370,1781055042000,-500.0,0.00019726,2]
[424692381,1781055042000,-500.0,0.00019726,2]
[424692366,1781055042000,-782.41,0.00019726,2]
[424692361,1781055042000,-500.0,0.00019726,2]
[424692349,1781055042000,-500.0,0.00019726,2]
[424692359,1781055042000,-500.0,0.00019726,2]
[424692357,1781055042000,-500.0,0.00019726,2]
[424692356,1781055042000,-500.0,0.00019726,2]
[424692355,1781055042000,-500.0,0.00019726,2]
[424692354,1781055042000,-500.0,0.00019726,2]
[424692352,1781055042000,-236.68,0.00019726,2]
[424692351,1781055042000,-563.84,0.00019726,2]
[424692348,1781055042000,-454.28,0.00019726,2]
[424692350,1781055042000,-500.0,0.00019726,2]
[424692347,1781055042000,-500.0,0.00019726,2]
[424692343,1781055042000,-500.0,0.00019726,2]
[424692345,1781055042000,-649.82,0.00019726,2]
[424692346,1781055042000,-279.98,0.00019726,2]
[424692380,1781055042000,-699.28,0.00019726,2]
[424692363,1781055042000,-500.0,0.00019726,2]
[424692371,1781055042000,-434.03585196,0.00019726,2]
[424692388,1781055042000,-582.84,0.00019726,2]
[424692374,1781055042000,-1448.14,0.00019726,2]
[424692410,1781055042000,-540.85792396,0.00019726,2]
[424692407,1781055042000,-395.02,0.00019726,2]
[424692408,1781055042000,-500.0,0.00019726,2]
[424692405,1781055042000,-898.06085229,0.00019726,2]
[424692406,1781055042000,-2123.62,0.00019726,2]
[424692404,1781055042000,-269.85346135,0.00019452,2]
[424692403,1781055042000,-235.17386852,0.00019452,2]
[424692401,1781055042000,-500.0,0.00019178,2]
[424692402,1781055042000,-484.86092505,0.00019452,2]
[424692400,1781055042000,-556.09878687,0.00019178,2]
[424692394,1781055042000,-446.49623228,0.00019726,2]
[424692399,1781055042000,-775.32914771,0.00019726,2]
[424692397,1781055042000,-65.04376772,0.00019726,2]
[424692393,1781055042000,-1089.68,0.00019726,2]
[424692392,1781055042000,-1485.73,0.00019726,2]
[424692390,1781055042000,-500.0,0.00019726,2]
[424692391,1781055042000,-1115.58,0.00019726,2]
[424692386,1781055042000,-500.0,0.00019726,2]
[424692389,1781055042000,-500.0,0.00019726,2]
[424692387,1781055042000,-500.0,0.00019726,2]
[424692385,1781055042000,-2078.16,0.00019726,2]
[424692384,1781055042000,-1204.49,0.00019726,2]
[424692382,1781055042000,-500.0,0.00019726,2]
[424692383,1781055042000,-12201.47,0.00019726,2]
[424692378,1781055042000,-500.0,0.00019726,2]
[424692376,1781055042000,-500.0,0.00019726,2]
[424692379,1781055042000,-500.0,0.00019726,2]
[424692377,1781055042000,-2947.65,0.00019726,2]
[424692375,1781055042000,-500.0,0.00019726,2]
[424692373,1781055042000,-500.0,0.00019726,2]
[424692344,1781055042000,-500.0,0.00019726,2]
[424692353,1781055042000,-500.0,0.00019726,2]
[424692340,1781055042000,-500.0,0.00019726,2]
[424692342,1781055042000,-500.0,0.00019726,2]
[424692314,1781055042000,-2371.29,0.00019452,2]
[424692315,1781055042000,-1138.19,0.00019452,2]
[424692317,1781055042000,-507.66,0.00019452,2]
[424692318,1781055042000,-969.0,0.00019452,2]
[424692323,1781055042000,-504.52,0.00019452,2]
[424692316,1781055042000,-500.0,0.00019452,2]
[424692321,1781055042000,-500.0,0.00019452,2]
[424692324,1781055042000,-395.07160073,0.00019452,2]
[424692320,1781055042000,-503.03032124,0.00019452,2]
[424692322,1781055042000,-500.0,0.00019452,2]
[424692325,1781055042000,-500.0,0.00019452,2]
[424692328,1781055042000,-1405.25,0.00019726,2]
[424692319,1781055042000,-3034.63,0.00019452,2]
[424692326,1781055042000,-235.62,0.00019452,2]
[424692327,1781055042000,-300.0,0.00019589,3]
[424692341,1781055042000,-170.8,0.00019726,2]
[424692339,1781055042000,-500.0,0.00019726,2]
[424692337,1781055042000,-774.1221,0.00019726,2]
[424692338,1781055042000,-892.75,0.00019726,2]
[424692334,1781055042000,-343.76,0.00019726,2]
[424692330,1781055042000,-500.0,0.00019726,2]
[424692333,1781055042000,-500.0,0.00019726,2]
[424692331,1781055042000,-500.0,0.00019726,2]
[424692335,1781055042000,-500.0,0.00019726,2]
[424692329,1781055042000,-500.0,0.00019726,2]
[424692336,1781055042000,-500.0,0.00019726,2]
[424692450,1781055046000,-500.0,0.00019726,2]
[424692434,1781055046000,-873.62207604,0.00019726,2]
[424692449,1781055046000,-504.52,0.00019726,2]
[424692443,1781055046000,-500.0,0.00019726,2]
[424692439,1781055046000,-182.92519574,0.00019726,2]
[424692441,1781055046000,-2371.29,0.00019726,2]
[424692440,1781055046000,-3741.29480426,0.00019726,2]
[424692433,1781055046000,-781.99,0.00019452,2]
[424692435,1781055046000,-2742.84,0.00019726,2]
[424692438,1781055046000,-500.0,0.00019726,2]
[424692436,1781055046000,-500.0,0.00019726,2]
[424692431,1781055046000,-365.69366793,0.00019452,2]
[424692432,1781055046000,-544.04,0.00019452,2]
[424692429,1781055046000,-323.2399,0.00019178,2]
[424692430,1781055046000,-781.99,0.00019178,2]
[424692426,1781055046000,-220.8001,0.00019178,2]
[424692424,1781055046000,-500.0,0.00019178,2]
[424692445,1781055046000,-969.0,0.00019726,2]
[424692437,1781055046000,-3393.91,0.00019726,2]
[424692448,1781055046000,-500.0,0.00019726,2]
[424692442,1781055046000,-1138.19,0.00019726,2]
[424692447,1781055046000,-503.46989656,0.00019726,2]
[424692444,1781055046000,-507.66,0.00019726,2]
[424692468,1781055046000,-6355.00000001,0.0002,2]
[424692467,1781055046000,-53161.19650021,0.0002,2]
[424692466,1781055046000,-235.62,0.0002,2]
[424692461,1781055046000,-500.0,0.0002,2]
[424692459,1781055046000,-500.0,0.0002,2]
[424692462,1781055046000,-500.0,0.0002,2]
[424692458,1781055046000,-500.0,0.0002,2]
[424692460,1781055046000,-500.0,0.0002,2]
[424692463,1781055046000,-32374.03041795,0.0002,5]
[424692465,1781055046000,-500.0,0.0002,2]
[424692455,1781055046000,-150.0,0.0002,2]
[424692456,1781055046000,-500.0,0.0002,2]
[424692451,1781055046000,-544.04,0.00019726,2]
[424692452,1781055046000,-781.99,0.00019726,2]
[424692446,1781055046000,-3034.63,0.00019726,2]
[424692454,1781055046000,-179.85611511,0.0001992,2]
[424692464,1781055046000,-500.0,0.0002,2]
[424692457,1781055046000,-583.99045305,0.0002,2]
[424692453,1781055046000,-235.62,0.00019726,2]
[424692469,1781055123000,153.0,0.0002,120]
[424692480,1781056051000,167.0,0.00020138,120]
[424692481,1781056053000,167.0,0.00021138,120]
[424692482,1781056054000,168.2232769,0.00022138,120]
[424692615,1781056238000,-500.0,0.00018904,2]
[424692630,1781056238000,-500.0,0.00018904,2]
[424692633,1781056238000,-500.0,0.00018904,2]
[424692632,1781056238000,-500.0,0.00018904,2]
[424692635,1781056238000,-500.0,0.00018904,2]
[424692648,1781056238000,-500.0,0.00018904,2]
[424692655,1781056238000,-365.28762249,0.00018904,2]
[424692650,1781056238000,-500.0,0.00018904,2]
[424692637,1781056238000,-500.0,0.00018904,2]
[424692621,1781056238000,-500.0,0.00018904,2]
[424692652,1781056238000,-500.0,0.00018904,2]
[424692613,1781056238000,-15427.0975943,0.00017683,2]
[424692604,1781056238000,-554.95,0.00013698,2]
[424692619,1781056238000,-500.0,0.00018904,2]
[424692628,1781056238000,-500.0,0.00018904,2]
[424692626,1781056238000,-500.0,0.00018904,2]
[424692625,1781056238000,-372.94763273,0.00018904,2]
[424692611,1781056238000,-333.99059967,0.00017294,2]
[424692623,1781056238000,-500.0,0.00018904,2]
[424692607,1781056238000,-220.34756687,0.00016521,3]
[424692609,1781056238000,-374.75782422,0.00017294,2]
[424692606,1781056238000,-342.85443181,0.00015764,2]
[424692600,1781056238000,-5000.0,0.00013561,2]
[424692602,1781056238000,-500.0,0.00013698,2]
[424692659,1781056238000,-160.0,0.00019073,2]
[424692617,1781056238000,-500.0,0.00018904,2]
[424692657,1781056238000,-417.15472785,0.00019073,2]
[424692647,1781056238000,-500.0,0.00018904,2]
[424692641,1781056238000,-500.0,0.00018904,2]
[424692654,1781056238000,-500.0,0.00018904,2]
[424692687,1781056238000,-322.02655137,0.00019099,2]
[424692689,1781056238000,-151.0,0.00019166,2]
[424692696,1781056238000,-151.0,0.00019166,2]
[424692693,1781056238000,-151.0,0.00019166,2]
[424692695,1781056238000,-151.0,0.00019166,2]
[424692691,1781056238000,-151.0,0.00019166,2]
[424692686,1781056238000,-11102.1712395,0.00019078,2]
[424692682,1781056238000,-1710.0351061,0.00019078,2]
[424692680,1781056238000,-2295.1468211,0.00019078,2]
[424692672,1781056238000,-500.0,0.00019077,2]
[424692675,1781056238000,-554.95,0.00019077,2]
[424692678,1781056238000,-168.829,0.00019078,2]
[424692684,1781056238000,-1910.80909711,0.00019078,2]
[424692673,1781056238000,-500.0,0.00019077,2]
[424692645,1781056238000,-500.0,0.00018904,2]
[424692666,1781056238000,-500.0,0.00019076,2]
[424692640,1781056238000,-500.0,0.00018904,2]
[424692639,1781056238000,-500.0,0.00018904,2]
[424692661,1781056238000,-160.0,0.00019073,2]
[424692643,1781056238000,-500.0,0.00018904,2]
[424692668,1781056238000,-331.10186337,0.00019076,2]
[424692677,1781056238000,-500.0,0.00019077,2]
[424692670,1781056238000,-511.84867463,0.00019077,2]
[424692664,1781056238000,-500.0,0.00019076,2]
[424692663,1781056238000,-768.72334842,0.00019074,2]
[424692779,1781056239000,-503.63542567,0.00019178,2]
[424692774,1781056239000,-503.63220824,0.00019178,2]
[424692778,1781056239000,-502.37434457,0.00019178,2]
[424692776,1781056239000,-502.82202015,0.00019178,2]
[424692767,1781056239000,-503.56210567,0.00019178,2]
[424692763,1781056239000,-503.1901322,0.00019178,2]
[424692772,1781056239000,-503.97261732,0.00019178,2]
[424692760,1781056239000,-500.0,0.00019178,2]
[424692769,1781056239000,-500.0,0.00019178,2]
[424692762,1781056239000,-568.59,0.00019178,2]
[424692756,1781056239000,-500.0,0.00019178,2]
[424692781,1781056239000,-499.86422566,0.00019178,2]
[424692770,1781056239000,-504.40057702,0.00019178,2]
[424692790,1781056239000,-468.79249415,0.00019178,2]
[424692806,1781056239000,-500.0,0.00019178,2]
[424692784,1781056239000,-500.0,0.00019178,2]
[424692792,1781056239000,-500.0,0.00019178,2]
[424692788,1781056239000,-500.0,0.00019178,2]
[424692793,1781056239000,-500.0,0.00019178,2]
[424692786,1781056239000,-505.16030708,0.00019178,2]
[424692802,1781056239000,-500.0,0.00019178,2]
[424692799,1781056239000,-520.61684817,0.00019178,2]
[424692795,1781056239000,-500.0,0.00019178,2]
[424692797,1781056239000,-500.0,0.00019178,2]
[424692800,1781056239000,-500.0,0.00019178,2]
[424692804,1781056239000,-500.77184293,0.00019178,2]
[424692758,1781056239000,-500.0,0.00019178,2]
[424692807,1781056239000,-500.0,0.00019178,2]
[424692811,1781056239000,-500.0,0.00019178,2]
[424692783,1781056239000,-500.0,0.00019178,2]
[424692765,1781056239000,-507.54937065,0.00019178,2]
[424692734,1781056239000,-554.95,0.00019177,2]
[424692751,1781056239000,-500.0,0.00019178,2]
[424692813,1781056239000,-500.0,0.00019178,2]
[424692698,1781056239000,-151.0,0.00019166,2]
[424692702,1781056239000,-151.0,0.00019166,2]
[424692700,1781056239000,-151.0,0.00019166,2]
[424692704,1781056239000,-151.0,0.00019166,2]
[424692706,1781056239000,-151.0,0.00019166,2]
[424692708,1781056239000,-191.35295109,0.00019166,2]
[424692710,1781056239000,-500.0,0.00019177,2]
[424692713,1781056239000,-595.66634543,0.00019177,2]
[424692712,1781056239000,-500.0,0.00019177,2]
[424692723,1781056239000,-554.95,0.00019177,2]
[424692721,1781056239000,-554.95,0.00019177,2]
[424692719,1781056239000,-500.0,0.00019177,2]
[424692717,1781056239000,-500.0,0.00019177,2]
[424692715,1781056239000,-500.0,0.00019177,2]
[424692725,1781056239000,-554.95,0.00019177,2]
[424692727,1781056239000,-554.95,0.00019177,2]
[424692728,1781056239000,-554.95,0.00019177,2]
[424692730,1781056239000,-554.95,0.00019177,2]
[424692738,1781056239000,-500.0,0.00019177,2]
[424692732,1781056239000,-554.95,0.00019177,2]
[424692736,1781056239000,-554.95,0.00019177,2]
[424692740,1781056239000,-284.67105515,0.00019177,2]
[424692743,1781056239000,-163.57295553,0.00019178,2]
[424692745,1781056239000,-500.0,0.00019178,2]
[424692747,1781056239000,-531.92723014,0.00019178,2]
[424692742,1781056239000,-500.0,0.00019178,2]
[424692749,1781056239000,-500.0,0.00019178,2]
[424692753,1781056239000,-504.41219131,0.00019178,2]
[424692755,1781056239000,-502.71001692,0.00019178,2]
[424692817,1781056239000,-500.0,0.00019178,2]
[424692852,1781056239000,-2873.31,0.00019178,2]
[424692809,1781056239000,-500.0,0.00019178,2]
[424692883,1781056239000,-500.0,0.00019178,2]
[424692818,1781056239000,-500.0,0.00019178,2]
[424692879,1781056239000,-505.37,0.00019178,2]
[424692886,1781056239000,-500.0,0.00019178,2]
[424692881,1781056239000,-2919.01,0.00019178,2]
[424692885,1781056239000,-500.0,0.00019178,2]
[424692875,1781056239000,-500.0,0.00019178,2]
[424692888,1781056239000,-500.0,0.00019178,2]
[424692896,1781056239000,-913.98,0.00019178,2]
[424692894,1781056239000,-1226.89,0.00019178,2]
[424692910,1781056239000,-500.0,0.00019178,2]
[424692908,1781056239000,-1136.43,0.00019178,2]
[424692912,1781056239000,-500.0,0.00019178,2]
[424692901,1781056239000,-596.94,0.00019178,2]
[424692914,1781056239000,-485.4241143,0.00019178,2]
[424692897,1781056239000,-500.0,0.00019178,2]
[424692899,1781056239000,-2118.59,0.00019178,2]
[424692906,1781056239000,-500.0,0.00019178,2]
[424692904,1781056239000,-500.0,0.00019178,2]
[424692903,1781056239000,-500.0,0.00019178,2]
[424692915,1781056239000,-500.0,0.00019178,2]
[424692917,1781056239000,-1530.04,0.00019178,2]
[424692919,1781056239000,-500.0,0.00019178,2]
[424692921,1781056239000,-527.25,0.00019178,2]
[424692928,1781056239000,-1710.5,0.00019178,2]
[424692925,1781056239000,-500.0,0.00019178,2]
[424692926,1781056239000,-500.0,0.00019178,2]
[424692930,1781056239000,-500.0,0.00019178,2]
[424692923,1781056239000,-1108.03,0.00019178,2]
[424692890,1781056239000,-500.0,0.00019178,2]
[424692874,1781056239000,-14244.73,0.00019178,2]
[424692892,1781056239000,-500.0,0.00019178,2]
[424692860,1781056239000,-500.0,0.00019178,2]
[424692814,1781056239000,-500.0,0.00019178,2]
[424692822,1781056239000,-500.0,0.00019178,2]
[424692820,1781056239000,-611.87,0.00019178,2]
[424692827,1781056239000,-500.0,0.00019178,2]
[424692824,1781056239000,-500.0,0.00019178,2]
[424692825,1781056239000,-500.0,0.00019178,2]
[424692831,1781056239000,-500.0,0.00019178,2]
[424692829,1781056239000,-500.0,0.00019178,2]
[424692836,1781056239000,-500.0,0.00019178,2]
[424692834,1781056239000,-373.70761439,0.00019178,2]
[424692877,1781056239000,-1470.28,0.00019178,2]
[424692845,1781056239000,-500.0,0.00019178,2]
[424692847,1781056239000,-500.0,0.00019178,2]